[Event "9th Bangabandhu Blitz Men 2021"]
[Site "Dhaka"]
[Date "2021.04.03"]
[Round "7.8"]
[White "Rahman, Syed Mahfuzur"]
[Black "Zia, Tahsin Tajwar"]
[Result "0-1"]
[ECO "D31"]
[WhiteElo "2206"]
[BlackElo "2170"]
[Annotator "ChessBase"]
[PlyCount "72"]
[EventDate "2021.04.02"]
[EventType "swiss"]
[EventCountry "BAN"]
[SourceTitle "playchess.com"]
[Source "ChessBase"]
[SourceQuality "1"]
[TimeControl "1500+10"]

1. d4 {[%emt 0:22:08]} d5 {[%emt 0:22:12]} 2. c4 {[%emt 0:00:10]} e6 {[%emt 0:00:10]} 3. Nc3 {[%emt 0:00:10]} a6 {[%emt 0:00:13]} 4. a4 {[%emt 0:00:11]} Bb4 {[%emt 0:00:15]} 5. Qb3 {[%emt 0:00:17]} Nc6 {[%emt 0:00:15]} 6. Nf3 {[%emt 0:00:16]} h6 {[%emt 0:00:19]} 7. Bd2 {[%emt 0:00:13]} Nf6 {[%emt 0:00:10]} 8. e3 {[%emt 0:00:14]} O-O {[%emt 0:00:10]} 9. Bd3 {[%emt 0:00:52]} Qe7 {[%emt 0:00:53]} 10. Qc2 {[%emt 0:00:37]} Rd8 {[%emt 0:00:22]} 11. O-O {[%emt 0:00:13]} dxc4 {[%emt 0:00:13]} 12. Bxc4 {[%emt 0:00:10]} Na5 {[%emt 0:00:09]} 13. Ba2 {[%emt 0:00:18]} c5 {[%emt 0:00:13]} 14. Rfd1 {[%emt 0:00:29]} b6 {[%emt 0:00:11]} 15. Ne4 {[%emt 0:00:21]} Nxe4 {[%emt 0:00:14]} 16. Qxe4 {[%emt 0:00:13]} Bb7 {[%emt 0:00:12]} 17. Qc2 {[%emt 0:00:14]} Rac8 {[%emt 0:00:12]} 18. Bxb4 {[%emt 0:00:24]} cxb4 {[%emt 0:00:12]} 19. Qd3 {[%emt 0:00:08]} Qf6 {[%emt 0:00:58]} 20. Ne5 {[%emt 0:00:26]} Qg5 {[%emt 0:00:09]} 21. Qf1 {[%emt 0:00:11]} b3 {[%emt 0:00:31]} 22. Bb1 {[%emt 0:00:09]} f6 {[%emt 0:00:12]} 23. Nd3 {[%emt 0:00:11]} Nc4 {[%emt 0:00:13]} 24. h3 {[%emt 0:00:20]} Qd5 {[%emt 0:00:10]} 25. Nf4 {[%emt 0:00:11]} Qc6 {[%emt 0:00:10]} 26. Bd3 {[%emt 0:00:11]} Nxb2 {[%emt 0:00:11]} 27. Rdc1 {[%emt 0:00:09]} Qd7 {[%emt 0:00:12]} 28. Bg6 {[%emt 0:00:09]} b5 {[%emt 0:00:13]} 29. axb5 {[%emt 0:00:09]} axb5 {[%emt 0:00:09]} 30. Rxc8 {[%emt 0:00:16]} Rxc8 31. Rb1 {[%emt 0:00:03]} Nc4 {[%emt 0:00:18]} 32. Qd3 {[%emt 0:00:10]} b2 {[%emt 0:00:10]} 33. Be4 {[%emt 0:00:10]} Bxe4 {[%emt 0:00:10]} 34. Qxe4 {[%emt 0:00:09]} Nd2 {[%emt 0:00:10]} 35. Qd3 {[%emt 0:00:10]} Nxb1 {[%emt 0:00:09]} 36. Qxb1 {[%emt 0:00:09]} Rc1+ {[%emt 0:00:09]} 0-1

[Event "9th Bangabandhu Blitz Men 2021"]
[Site "Dhaka"]
[Date "2021.04.03"]
[Round "8.1"]
[White "Mohammad Fahad, Rahman"]
[Black "Hossain, Enamul"]
[Result "0-1"]
[ECO "C16"]
[WhiteElo "2321"]
[BlackElo "2404"]
[Annotator "ChessBase"]
[PlyCount "76"]
[EventDate "2021.04.02"]
[EventType "swiss"]
[EventCountry "BAN"]
[SourceTitle "playchess.com"]
[Source "ChessBase"]
[SourceQuality "1"]
[TimeControl "1500+10"]

1. e4 {[%emt 0:22:09]} e6 {[%emt 0:22:06]} 2. d4 {[%emt 0:00:09]} d5 {[%emt 0:00:09]} 3. Nc3 {[%emt 0:00:10]} Bb4 {[%emt 0:00:09]} 4. e5 {[%emt 0:00:09]} b6 {[%emt 0:00:09]} 5. a3 {[%emt 0:00:13]} Bf8 {[%emt 0:00:09]} 6. f4 {[%emt 0:00:18]} h5 {[%emt 0:00:25]} 7. Nf3 {[%emt 0:00:10]} Nh6 {[%emt 0:00:10]} 8. Be3 {[%emt 0:00:16]} Ba6 {[%emt 0:00:10]} 9. Bxa6 Nxa6 {[%emt 0:00:10]} 10. Qe2 {[%emt 0:00:26]} Nb8 {[%emt 0:00:09]} 11. O-O {[%emt 0:00:12]} Nf5 {[%emt 0:00:09]} 12. Bf2 {[%emt 0:00:10]} Be7 {[%emt 0:00:10]} 13. Nd1 {[%emt 0:00:20]} Qd7 {[%emt 0:00:29]} 14. Ne3 {[%emt 0:00:13]} g6 {[%emt 0:00:19]} 15. Nxf5 {[%emt 0:00:13]} gxf5 {[%emt 0:02:37]} 16. Ng5 {[%emt 0:00:20]} Bxg5 {[%emt 0:00:00]} 17. fxg5 {[%emt 0:00:09]} Nc6 {[%emt 0:00:00]} 18. b3 {[%emt 0:00:35]} Ne7 {[%emt 0:00:00]} 19. c4 {[%emt 0:00:11]} Kf8 {[%emt 0:00:00]} 20. Rac1 {[%emt 0:00:12]} Kg7 {[%emt 0:00:00]} 21. Be3 {[%emt 0:00:13]} Kg6 {[%emt 0:00:00]} 22. Qd3 {[%emt 0:00:13]} Rhd8 {[%emt 0:00:00]} 23. Rf4 {[%emt 0:00:18]} c6 {[%emt 0:01:20]} 24. Rh4 {[%emt 0:00:13]} Rh8 {[%emt 0:00:00]} 25. Rf1 {[%emt 0:00:13]} Rab8 {[%emt 0:00:00]} 26. Kh1 {[%emt 0:00:13]} dxc4 {[%emt 0:00:00]} 27. bxc4 {[%emt 0:01:32]} b5 {[%emt 0:00:00]} 28. Rc1 {[%emt 0:00:00]} bxc4 {[%emt 0:00:00]} 29. Qxc4 {[%emt 0:00:00]} Qd5 {[%emt 0:00:00]} 30. Qa6 {[%emt 0:00:00]} Rb2 {[%emt 0:00:04]} 31. Qf1 {[%emt 0:00:00]} Qb5 {[%emt 0:00:18]} 32. Qg1 {[%emt 0:00:05]} Nd5 {[%emt 0:00:09]} 33. Bf2 {[%emt 0:00:38]} Rb8 {[%emt 0:00:18]} 34. g4 {[%emt 0:00:18]} fxg4 {[%emt 0:00:18]} 35. h3 {[%emt 0:00:11]} Qe2 {[%emt 0:00:13]} 36. Rf1 {[%emt 0:00:11]} Qf3+ {[%emt 0:00:19]} 37. Kh2 {[%emt 0:00:10]} Ne3 {[%emt 0:00:10]} 38. hxg4 {[%emt 0:00:12]} Nxf1+ {[%emt 0:00:09]} 0-1

[Event "9th Bangabandhu Blitz Men 2021"]
[Site "Dhaka"]
[Date "2021.04.03"]
[Round "8.4"]
[White "Reefat, Bin-Sattar"]
[Black "Rahman, Ziaur"]
[Result "0-1"]
[ECO "C02"]
[WhiteElo "2401"]
[BlackElo "2432"]
[Annotator "RC"]
[PlyCount "88"]
[EventDate "2021.04.02"]
[EventType "swiss"]
[EventCountry "BAN"]
[SourceTitle "playchess.com"]
[Source "ChessBase"]
[SourceQuality "1"]
[TimeControl "1500+10"]

1. e4 {[%emt 0:22:08]} e6 {[%emt 0:22:15]} 2. d4 {[%emt 0:00:09]} d5 {[%emt 0:00:09]} 3. e5 {[%emt 0:00:09]} c5 {[%emt 0:00:08]} 4. c3 {[%emt 0:00:09]} Nc6 {[%emt 0:00:09]} 5. Nf3 {[%emt 0:00:09]} Qb6 {[%emt 0:00:12]} 6. a3 {[%emt 0:00:10]} c4 {[%emt 0:00:11]} 7. Nbd2 {[%emt 0:00:09]} Na5 {[%emt 0:00:11]} 8. g3 {[%emt 0:00:12]} Bd7 {[%emt 0:00:14]} 9. h4 {[%emt 0:00:10]} Ne7 {[%emt 0:00:09]} 10. h5 {[%emt 0:00:13]} h6 {[%emt 0:00:21]} 11. Bh3 {[%emt 0:00:12]} Qc7 {[%emt 0:00:09]} 12. Rb1 {[%emt 0:00:15]} Nc8 {[%emt 0:00:18]} 13. Qe2 {[%emt 0:00:22]} Nb6 {[%emt 0:00:24]} 14. Nf1 {[%emt 0:00:11]} O-O-O {[%emt 0:00:15]} 15. N1h2 {[%emt 0:00:26]} Kb8 {[%emt 0:00:14]} 16. Bf4 {[%emt 0:00:32]} Nb3 {[%emt 0:00:11]} 17. g4 {[%emt 0:00:25]} Be7 {[%emt 0:00:28]} 18. Nd2 {[%emt 0:00:19]} Ka8 {[%emt 0:00:30]} 19. Bg3 {[%emt 0:00:11]} Nxd2 {[%emt 0:00:11]} 20. Qxd2 {[%emt 0:00:09]} g6 {[%emt 0:00:12]} 21. Bf4 {[%emt 0:00:25]} Rdg8 {[%emt 0:00:25]} 22. Nf3 {[%emt 0:00:28]} Qd8 {[%emt 0:00:11]} 23. Ke2 {[%emt 0:00:14]} Ba4 {[%emt 0:00:17]} 24. Rbg1 {[%emt 0:00:12]} Nd7 {[%emt 0:00:13]} 25. Bf1 {[%emt 0:00:15]} g5 {[%emt 0:00:11]} 26. Bg3 {[%emt 0:00:14]} f6 {[%emt 0:00:08]} 27. exf6 {[%emt 0:00:13]} Bxf6 {[%emt 0:00:09]} 28. Bg2 {[%emt 0:00:15]} Re8 {[%emt 0:00:10]} 29. Ne5 {[%emt 0:00:27]} Bxe5 {[%emt 0:00:16]} 30. Bxe5 {[%emt 0:00:14]} Nxe5 {[%emt 0:00:11]} 31. dxe5 {[%emt 0:00:09]} Rhf8 {[%emt 0:00:09]} 32. Rh3 {[%emt 0:00:10]} Qc7 {[%emt 0:00:12]} 33. Re3 {[%emt 0:00:10]} Rf4 {[%emt 0:00:10]} 34. f3 {[%emt 0:00:10]} Rd8 {[%emt 0:00:12]} 35. Rc1 {[%emt 0:00:18]} a5 {[%emt 0:00:16]} 36. Kf2 {[%emt 0:00:10]} Qb6 {[%emt 0:00:09]} 37. Kg3 {[%emt 0:00:10]} Ka7 {[%emt 0:00:12]} 38. Bf1 {[%emt 0:00:10]} Qc5 {[%emt 0:00:10]} 39. Be2 {[%emt 0:00:11]} Bc6 {[%emt 0:00:12]} 40. Bd1 {[%emt 0:00:11]} d4 {[%emt 0:00:09]} 41. cxd4 {[%emt 0:00:10]} Rfxd4 {[%emt 0:00:09]} 42. Qe1 {[%emt 0:00:10]} Rxd1 {[%emt 0:00:11]} 43. Rxd1 {[%emt 0:00:24]} Rxd1 {[%emt 0:00:10]} 44. Qf2 {[%emt 0:00:00]} Rd3 {[%emt 0:00:14]} 0-1

[Event "9th Bangabandhu Blitz Men 2021"]
[Site "Dhaka"]
[Date "2021.04.03"]
[Round "8.5"]
[White "Zia, Tahsin Tajwar"]
[Black "Mohammed Abdul, Malek"]
[Result "1-0"]
[ECO "A85"]
[WhiteElo "2170"]
[BlackElo "2125"]
[Annotator "NA"]
[PlyCount "60"]
[EventDate "2021.04.02"]
[EventType "swiss"]
[EventCountry "BAN"]
[SourceTitle "playchess.com"]
[Source "ChessBase"]
[SourceQuality "1"]
[TimeControl "1500+10"]

1. d4 {[%emt 0:22:08]} e6 {[%emt 0:22:06]} 2. Nf3 {[%emt 0:00:11]} f5 {[%emt 0:03:14]} 3. Bf4 {[%emt 0:00:14]} Nf6 {[%emt 0:00:00]} 4. e3 {[%emt 0:00:09]} b6 {[%emt 0:00:00]} 5. Be2 {[%emt 0:00:12]} Bb7 {[%emt 0:00:00]} 6. c4 {[%emt 0:00:15]} Be7 {[%emt 0:00:00]} 7. Nc3 {[%emt 0:00:09]} O-O {[%emt 0:00:00]} 8. h3 {[%emt 0:00:09]} Bb4 {[%emt 0:00:00]} 9. Qc2 {[%emt 0:00:13]} Ne4 {[%emt 0:01:10]} 10. g4 {[%emt 0:00:37]} d6 {[%emt 0:00:00]} 11. gxf5 {[%emt 0:00:15]} exf5 {[%emt 0:00:00]} 12. d5 {[%emt 0:00:12]} Bxc3+ {[%emt 0:00:00]} 13. bxc3 {[%emt 0:00:10]} Na6 {[%emt 0:00:00]} 14. Nd4 {[%emt 0:02:26]} Bc8 {[%emt 0:00:00]} 15. h4 {[%emt 0:00:00]} Nac5 {[%emt 0:00:00]} 16. f3 {[%emt 0:00:20]} Nf6 {[%emt 0:00:00]} 17. h5 {[%emt 0:00:00]} Ne8 {[%emt 0:00:00]} 18. O-O-O {[%emt 0:00:00]} Qe7 {[%emt 0:00:00]} 19. Rdg1 {[%emt 0:00:00]} Kh8 {[%emt 0:00:07]} 20. Bg5 {[%emt 0:00:40]} Qf7 {[%emt 0:01:43]} 21. Rh2 {[%emt 0:00:00]} a6 {[%emt 0:00:00]} 22. Nc6 {[%emt 0:00:00]} Bd7 {[%emt 0:00:00]} 23. Ne7 {[%emt 0:00:00]} b5 {[%emt 0:00:00]} 24. Ng6+ {[%emt 0:00:00]} Kg8 {[%emt 0:00:00]} 25. Nxf8 Qxf8 26. Qd2 {[%emt 0:00:47]} bxc4 {[%emt 0:00:08]} 27. Qd4 {[%emt 0:00:09]} Rb8 {[%emt 0:00:19]} 28. Rhg2 {[%emt 0:00:09]} a5 {[%emt 0:00:34]} 29. Bh6 {[%emt 0:00:11]} Kf7 {[%emt 0:00:23]} 30. Bxg7 {[%emt 0:00:10]} Qe7 {[%emt 0:00:16]} 1-0

[Event "9th Bangabandhu Blitz Men 2021"]
[Site "Dhaka"]
[Date "2021.04.03"]
[Round "8.6"]
[White "Uddin, Saif"]
[Black "Ahmed, Sheikh Nasir"]
[Result "0-1"]
[ECO "B22"]
[WhiteElo "1894"]
[BlackElo "2176"]
[Annotator "ChessBase"]
[PlyCount "58"]
[EventDate "2021.04.02"]
[EventType "swiss"]
[EventCountry "BAN"]
[SourceTitle "playchess.com"]
[Source "ChessBase"]
[SourceQuality "1"]
[TimeControl "1500+10"]

1. e4 {[%emt 0:22:07]} c5 {[%emt 0:22:08]} 2. Nf3 {[%emt 0:00:09]} e6 {[%emt 0:00:09]} 3. c3 {[%emt 0:00:11]} Nf6 {[%emt 0:00:11]} 4. e5 {[%emt 0:00:13]} Nd5 {[%emt 0:00:10]} 5. d4 {[%emt 0:00:09]} cxd4 {[%emt 0:00:10]} 6. Qxd4 {[%emt 0:00:11]} Nc6 {[%emt 0:00:23]} 7. Qe4 {[%emt 0:00:10]} f5 {[%emt 0:00:15]} 8. exf6 {[%emt 0:00:28]} Nxf6 {[%emt 0:00:11]} 9. Qc2 {[%emt 0:00:10]} Be7 {[%emt 0:00:26]} 10. Bd3 {[%emt 0:00:10]} d5 {[%emt 0:00:26]} 11. O-O {[%emt 0:00:22]} e5 {[%emt 0:00:10]} 12. Bb5 {[%emt 0:00:11]} Qc7 {[%emt 0:00:32]} 13. Re1 {[%emt 0:00:11]} e4 {[%emt 0:00:09]} 14. Nd4 {[%emt 0:00:13]} O-O {[%emt 0:00:10]} 15. Nxc6 {[%emt 0:00:13]} bxc6 {[%emt 0:00:10]} 16. Bf1 {[%emt 0:00:10]} Ng4 {[%emt 0:00:16]} 17. g3 {[%emt 0:00:27]} Rxf2 {[%emt 0:00:17]} 18. Re2 {[%emt 0:00:09]} Bc5 {[%emt 0:00:32]} 19. Rxf2 {[%emt 0:00:17]} Nxf2 {[%emt 0:00:13]} 20. Bf4 {[%emt 0:00:31]} Nd3+ {[%emt 0:00:18]} 21. Kh1 {[%emt 0:00:14]} Nxf4 {[%emt 0:00:09]} 22. gxf4 {[%emt 0:00:09]} Qxf4 {[%emt 0:00:11]} 23. Nd2 {[%emt 0:00:09]} Qf2 {[%emt 0:00:23]} 24. Bg2 {[%emt 0:00:11]} e3 {[%emt 0:00:11]} 25. Qa4 {[%emt 0:00:14]} exd2 {[%emt 0:00:21]} 26. Qxc6 {[%emt 0:00:25]} Qe1+ {[%emt 0:00:19]} 27. Bf1 {[%emt 0:00:09]} Rb8 {[%emt 0:00:17]} 28. Qxd5+ {[%emt 0:00:12]} Be6 {[%emt 0:00:16]} 29. Qxc5 {[%emt 0:00:38]} Qxa1 {[%emt 0:00:11]} 0-1

[Event "9th Bangabandhu Blitz Men 2021"]
[Site "Dhaka"]
[Date "2021.04.03"]
[Round "8.7"]
[White "Asaduzzaman, Ahad"]
[Black "Rahman, Taibur"]
[Result "0-1"]
[ECO "A36"]
[WhiteElo "1742"]
[BlackElo "2189"]
[Annotator "ChessBase"]
[PlyCount "64"]
[EventDate "2021.04.02"]
[EventType "swiss"]
[EventCountry "BAN"]
[SourceTitle "playchess.com"]
[Source "ChessBase"]
[SourceQuality "1"]
[TimeControl "1500+10"]

1. e4 {[%emt 0:22:08]} c5 {[%emt 0:22:07]} 2. c4 {[%emt 0:00:09]} Nc6 {[%emt 0:00:11]} 3. Nc3 {[%emt 0:00:09]} g6 {[%emt 0:03:12]} 4. g3 {[%emt 0:03:14]} Bg7 {[%emt 0:00:00]} 5. Bg2 {[%emt 0:00:00]} Nf6 {[%emt 0:00:00]} 6. Nge2 {[%emt 0:00:00]} d6 {[%emt 0:00:00]} 7. O-O {[%emt 0:00:00]} O-O {[%emt 0:00:00]} 8. h3 {[%emt 0:00:00]} h5 {[%emt 0:00:00]} 9. Rb1 {[%emt 0:00:00]} h4 {[%emt 0:00:00]} 10. g4 {[%emt 0:00:00]} Rb8 {[%emt 0:00:00]} 11. a3 {[%emt 0:00:00]} Ne5 {[%emt 0:00:00]} 12. d3 {[%emt 0:00:00]} Nfd7 {[%emt 0:00:00]} 13. f4 {[%emt 0:00:00]} Nc6 {[%emt 0:00:00]} 14. b4 {[%emt 0:00:00]} Nd4 {[%emt 0:00:00]} 15. Be3 {[%emt 0:00:00]} b6 {[%emt 0:00:00]} 16. f5 {[%emt 0:00:23]} Bb7 {[%emt 0:00:00]} 17. Nd5 {[%emt 0:00:20]} Bxd5 {[%emt 0:00:19]} 18. exd5 {[%emt 0:00:13]} a6 {[%emt 0:00:28]} 19. Nxd4 {[%emt 0:00:11]} cxd4 {[%emt 0:00:09]} 20. Bf4 {[%emt 0:00:19]} Rc8 {[%emt 0:00:14]} 21. Qe1 {[%emt 0:00:17]} b5 {[%emt 0:00:12]} 22. cxb5 {[%emt 0:00:16]} axb5 {[%emt 0:00:08]} 23. Qxh4 {[%emt 0:00:17]} Rc3 {[%emt 0:00:11]} 24. Be4 {[%emt 0:00:12]} Nf6 {[%emt 0:00:17]} 25. Bh6 {[%emt 0:00:26]} Nxe4 {[%emt 0:00:14]} 26. Bxg7 {[%emt 0:00:46]} Kxg7 {[%emt 0:00:12]} 27. dxe4 {[%emt 0:00:00]} Rh8 {[%emt 0:00:09]} 28. f6+ {[%emt 0:00:00]} exf6 {[%emt 0:00:12]} 29. Qf2 {[%emt 0:00:10]} Rhxh3 {[%emt 0:00:14]} 30. Qxd4 {[%emt 0:00:17]} Rcd3 {[%emt 0:00:10]} 31. Qa7 {[%emt 0:00:14]} Qe8 {[%emt 0:00:18]} 32. Rbe1 {[%emt 0:00:11]} Qe5 {[%emt 0:00:09]} 0-1

[Event "9th Bangabandhu Blitz Men 2021"]
[Site "Dhaka"]
[Date "2021.04.03"]
[Round "8.8"]
[White "Masum, Hossain"]
[Black "Mehdi Hasan Parag"]
[Result "1-0"]
[ECO "E22"]
[WhiteElo "2061"]
[BlackElo "2192"]
[Annotator "ChessBase"]
[PlyCount "114"]
[EventDate "2021.04.02"]
[EventType "swiss"]
[EventCountry "BAN"]
[SourceTitle "playchess.com"]
[Source "ChessBase"]
[SourceQuality "1"]
[TimeControl "1500+10"]

1. d4 {[%emt 0:22:07]} Nf6 {[%emt 0:22:08]} 2. c4 {[%emt 0:00:09]} e6 {[%emt 0:00:08]} 3. Nc3 {[%emt 0:00:10]} Bb4 {[%emt 0:00:10]} 4. Qb3 {[%emt 0:00:09]} c5 {[%emt 0:00:17]} 5. Nf3 {[%emt 0:00:10]} O-O {[%emt 0:00:14]} 6. Bg5 {[%emt 0:00:16]} Na6 {[%emt 0:00:33]} 7. e3 {[%emt 0:00:12]} cxd4 {[%emt 0:00:14]} 8. exd4 {[%emt 0:00:09]} d5 {[%emt 0:00:14]} 9. cxd5 {[%emt 0:00:49]} Qxd5 {[%emt 0:00:11]} 10. Bxf6 {[%emt 0:00:24]} Qxb3 {[%emt 0:00:15]} 11. axb3 {[%emt 0:00:10]} gxf6 {[%emt 0:00:10]} 12. Bxa6 {[%emt 0:00:13]} bxa6 {[%emt 0:00:09]} 13. O-O {[%emt 0:02:12]} Bb7 14. d5 {[%emt 0:00:00]} Bxc3 {[%emt 0:00:32]} 15. bxc3 {[%emt 0:00:00]} Bxd5 {[%emt 0:00:09]} 16. Nd4 {[%emt 0:00:00]} Bb7 {[%emt 0:00:18]} 17. c4 {[%emt 0:00:00]} Rfd8 {[%emt 0:00:10]} 18. Rfd1 {[%emt 0:00:00]} Rd7 {[%emt 0:00:15]} 19. Rd2 {[%emt 0:00:07]} Rad8 {[%emt 0:00:13]} 20. Rad1 {[%emt 0:00:09]} e5 {[%emt 0:00:15]} 21. Nf3 {[%emt 0:00:10]} Rxd2 {[%emt 0:00:11]} 22. Rxd2 {[%emt 0:00:09]} Rxd2 {[%emt 0:00:09]} 23. Nxd2 {[%emt 0:00:09]} a5 {[%emt 0:00:13]} 24. f3 {[%emt 0:00:12]} Kf8 {[%emt 0:00:09]} 25. Kf2 {[%emt 0:00:10]} Ke7 {[%emt 0:00:08]} 26. Ke3 {[%emt 0:00:22]} Kd6 {[%emt 0:00:09]} 27. Kd3 {[%emt 0:00:09]} Kc5 {[%emt 0:00:11]} 28. Kc3 {[%emt 0:00:09]} f5 {[%emt 0:00:09]} 29. g3 {[%emt 0:00:17]} f6 {[%emt 0:00:13]} 30. f4 {[%emt 0:00:10]} h5 {[%emt 0:00:18]} 31. Nf1 {[%emt 0:00:09]} Be4 {[%emt 0:00:19]} 32. Ne3 {[%emt 0:00:18]} a6 {[%emt 0:00:12]} 33. Nd1 {[%emt 0:00:17]} Bc6 {[%emt 0:00:13]} 34. Ne3 {[%emt 0:00:11]} Be4 {[%emt 0:00:12]} 35. Nd1 {[%emt 0:00:09]} Kc6 {[%emt 0:00:18]} 36. Nb2 {[%emt 0:00:14]} Kd6 {[%emt 0:00:18]} 37. Na4 {[%emt 0:00:14]} Bc6 {[%emt 0:00:13]} 38. Nb2 {[%emt 0:00:09]} Be4 {[%emt 0:00:18]} 39. Na4 {[%emt 0:00:10]} h4 {[%emt 0:00:15]} 40. Nb2 {[%emt 0:00:14]} hxg3 {[%emt 0:00:11]} 41. hxg3 {[%emt 0:00:09]} Bc6 {[%emt 0:00:17]} 42. Nd1 {[%emt 0:00:11]} Ke6 {[%emt 0:00:15]} 43. Ne3 {[%emt 0:00:11]} Be4 {[%emt 0:00:11]} 44. Nd1 {[%emt 0:00:12]} Kd6 {[%emt 0:00:22]} 45. Ne3 {[%emt 0:00:09]} Kc6 {[%emt 0:00:10]} 46. Nd1 {[%emt 0:00:09]} Kb6 {[%emt 0:00:11]} 47. Ne3 {[%emt 0:00:09]} Kc5 {[%emt 0:00:13]} 48. Nd1 {[%emt 0:00:14]} Bc6 {[%emt 0:00:11]} 49. Ne3 {[%emt 0:00:09]} exf4 {[%emt 0:00:12]} 50. gxf4 {[%emt 0:00:10]} Be4 {[%emt 0:00:09]} 51. Nd1 {[%emt 0:00:09]} Kc6 {[%emt 0:00:13]} 52. Ne3 {[%emt 0:00:09]} Kb6 {[%emt 0:00:09]} 53. Nd1 {[%emt 0:00:09]} Kc6 {[%emt 0:00:16]} 54. Ne3 {[%emt 0:00:12]} Kc5 {[%emt 0:00:10]} 55. Nd1 {[%emt 0:00:09]} Bc6 {[%emt 0:00:12]} 56. Ne3 {[%emt 0:00:09]} Be4 {[%emt 0:00:15]} 57. Nd1 {[%emt 0:00:22]} Bc6 {[%emt 0:00:00]} 1-0

[Event "9th Bangabandhu Blitz Men 2021"]
[Site "Dhaka"]
[Date "2021.04.03"]
[Round "9.2"]
[White "Rahman, Ziaur"]
[Black "Anata, Choudhury"]
[Result "1-0"]
[ECO "A50"]
[WhiteElo "2432"]
[BlackElo "2184"]
[Annotator "ChessBase"]
[PlyCount "84"]
[EventDate "2021.04.02"]
[EventType "swiss"]
[EventCountry "BAN"]
[SourceTitle "playchess.com"]
[Source "ChessBase"]
[SourceQuality "1"]
[TimeControl "180+2"]

1. Nf3 {[%emt 0:00:00]} Nf6 {[%emt 0:00:00]} 2. g3 {[%emt 0:00:00]} b6 {[%emt 0:00:03]} 3. Bg2 {[%emt 0:00:01]} Bb7 {[%emt 0:00:01]} 4. O-O {[%emt 0:00:02]} g6 {[%emt 0:00:01]} 5. d4 {[%emt 0:00:04]} Bg7 {[%emt 0:00:01]} 6. c4 {[%emt 0:00:01]} O-O {[%emt 0:00:02]} 7. d5 {[%emt 0:00:04]} Na6 {[%emt 0:00:01]} 8. Nc3 {[%emt 0:00:02]} c6 {[%emt 0:00:01]} 9. e4 {[%emt 0:00:05]} cxd5 {[%emt 0:00:01]} 10. cxd5 {[%emt 0:00:38]} Nc5 {[%emt 0:00:14]} 11. e5 {[%emt 0:00:14]} Nfe4 {[%emt 0:00:01]} 12. Nxe4 {[%emt 0:00:07]} Nxe4 {[%emt 0:00:02]} 13. Re1 {[%emt 0:00:10]} f5 {[%emt 0:00:04]} 14. Bf4 {[%emt 0:00:38]} e6 {[%emt 0:00:40]} 15. dxe6 {[%emt 0:00:31]} dxe6 {[%emt 0:00:03]} 16. Ng5 {[%emt 0:00:03]} Qxd1 {[%emt 0:00:40]} 17. Raxd1 {[%emt 0:00:02]} Nxg5 {[%emt 0:00:10]} 18. Bxg5 {[%emt 0:00:18]} Bxg2 {[%emt 0:00:11]} 19. Kxg2 {[%emt 0:00:01]} Rae8 {[%emt 0:00:14]} 20. h4 {[%emt 0:00:15]} h6 {[%emt 0:00:05]} 21. Bf4 {[%emt 0:00:01]} Rd8 {[%emt 0:00:03]} 22. a4 {[%emt 0:00:04]} Kf7 {[%emt 0:00:03]} 23. b4 {[%emt 0:00:02]} Rfe8 {[%emt 0:00:12]} 24. b5 {[%emt 0:00:02]} Bf8 {[%emt 0:00:01]} 25. Kf3 {[%emt 0:00:05]} h5 {[%emt 0:00:07]} 26. Rc1 {[%emt 0:00:04]} Rc8 {[%emt 0:00:02]} 27. Red1 {[%emt 0:00:03]} Rxc1 {[%emt 0:00:29]} 28. Rxc1 {[%emt 0:00:01]} Bc5 {[%emt 0:00:01]} 29. Rd1 {[%emt 0:00:01]} Re7 {[%emt 0:00:11]} 30. Bg5 {[%emt 0:00:01]} Rc7 {[%emt 0:00:01]} 31. Rd8 {[%emt 0:00:01]} Be7 {[%emt 0:00:03]} 32. Ra8 {[%emt 0:00:02]} Rc3+ {[%emt 0:00:04]} 33. Be3 {[%emt 0:00:03]} Rc7 {[%emt 0:00:01]} 34. Ke2 {[%emt 0:00:03]} Bb4 {[%emt 0:00:15]} 35. Bg5 {[%emt 0:00:03]} Be7 {[%emt 0:00:00]} 36. Bd2 {[%emt 0:00:05]} Bc5 {[%emt 0:00:00]} 37. a5 {[%emt 0:00:02]} bxa5 {[%emt 0:00:00]} 38. Bxa5 {[%emt 0:00:01]} Rb7 {[%emt 0:00:00]} 39. Rc8 {[%emt 0:00:05]} Be7 {[%emt 0:00:00]} 40. Ra8 {[%emt 0:00:06]} Rxb5 {[%emt 0:00:00]} 41. Rxa7 {[%emt 0:00:11]} Rxe5+ {[%emt 0:00:00]} 42. Kf3 {[%emt 0:00:00]} Rd5 {[%emt 0:00:16]} 1-0

[Event "9th Bangabandhu Blitz Men 2021"]
[Site "Dhaka"]
[Date "2021.04.03"]
[Round "9.3"]
[White "Ahmed, Sheikh Nasir"]
[Black "Mohammad Fahad, Rahman"]
[Result "0-1"]
[ECO "A04"]
[WhiteElo "2176"]
[BlackElo "2321"]
[Annotator "ChessBase"]
[PlyCount "93"]
[EventDate "2021.04.02"]
[EventType "swiss"]
[EventCountry "BAN"]
[SourceTitle "playchess.com"]
[Source "ChessBase"]
[SourceQuality "1"]
[TimeControl "180+2"]

1. e4 {[%emt 0:00:00]} c5 {[%emt 0:00:00]} 2. Nf3 {[%emt 0:00:02]} d6 {[%emt 0:00:00]} 3. d3 {[%emt 0:00:03]} g6 {[%emt 0:00:06]} 4. g3 {[%emt 0:00:01]} Bg7 {[%emt 0:00:01]} 5. Bg2 {[%emt 0:00:01]} Nc6 {[%emt 0:03:03]} 6. O-O {[%emt 0:00:02]} e6 {[%emt 0:00:02]} 7. c3 {[%emt 0:03:05]} Nge7 {[%emt 0:00:02]} 8. d4 {[%emt 0:00:00]} cxd4 {[%emt 0:00:00]} 9. cxd4 {[%emt 0:00:00]} Qb6 {[%emt 0:00:00]} 10. d5 {[%emt 0:00:00]} Ne5 {[%emt 0:00:00]} 11. Nc3 {[%emt 0:00:00]} O-O {[%emt 0:00:00]} 12. Rb1 {[%emt 0:00:00]} exd5 {[%emt 0:00:00]} 13. Be3 {[%emt 0:00:00]} Nxf3+ {[%emt 0:00:00]} 14. Bxf3 {[%emt 0:00:00]} d4 {[%emt 0:00:00]} 15. Na4 {[%emt 0:00:16]} Qb4 {[%emt 0:00:00]} 16. a3 {[%emt 0:00:02]} Qc4 {[%emt 0:00:00]} 17. Rc1 {[%emt 0:00:02]} Qb5 {[%emt 0:00:00]} 18. Bxd4 {[%emt 0:00:00]} Bxd4 {[%emt 0:00:00]} 19. Qxd4 {[%emt 0:00:00]} Nc6 {[%emt 0:00:00]} 20. Qd1 {[%emt 0:00:00]} Be6 {[%emt 0:00:00]} 21. b4 {[%emt 0:00:00]} Ne5 {[%emt 0:00:00]} 22. Bg2 {[%emt 0:00:00]} a5 {[%emt 0:00:00]} 23. Nc3 {[%emt 0:00:00]} Qd7 {[%emt 0:00:00]} 24. Nd5 Bxd5 {[%emt 0:00:00]} 25. Qxd5 {[%emt 0:00:00]} axb4 {[%emt 0:00:00]} 26. axb4 {[%emt 0:00:00]} Ra4 {[%emt 0:00:00]} 27. Rfd1 {[%emt 0:00:20]} Rxb4 {[%emt 0:00:12]} 28. Qxe5 {[%emt 0:00:00]} Rd8 {[%emt 0:00:08]} 29. Qd5 {[%emt 0:00:00]} Rb5 {[%emt 0:00:03]} 30. Qd4 {[%emt 0:00:00]} Qe7 {[%emt 0:00:02]} 31. Rc2 {[%emt 0:00:00]} Re5 {[%emt 0:00:06]} 32. Rcd2 {[%emt 0:00:00]} b5 {[%emt 0:00:04]} 33. h3 {[%emt 0:00:00]} Qb7 {[%emt 0:00:04]} 34. f4 {[%emt 0:00:00]} Re6 {[%emt 0:00:02]} 35. e5 {[%emt 0:00:00]} Qa6 {[%emt 0:00:04]} 36. exd6 {[%emt 0:00:00]} Rdxd6 {[%emt 0:00:05]} 37. Qxd6 {[%emt 0:00:04]} Rxd6 {[%emt 0:00:01]} 38. Rxd6 {[%emt 0:00:02]} Qa4 {[%emt 0:00:03]} 39. R1d2 {[%emt 0:00:05]} Qa1+ {[%emt 0:00:02]} 40. Kh2 {[%emt 0:00:02]} b4 {[%emt 0:00:01]} 41. Rb6 {[%emt 0:00:04]} Qc3 {[%emt 0:00:03]} 42. Rd7 {[%emt 0:00:05]} h5 {[%emt 0:00:02]} 43. Rb8+ {[%emt 0:00:03]} Kg7 {[%emt 0:00:02]} 44. Rbb7 {[%emt 0:00:01]} h4 {[%emt 0:00:06]} 45. Rxf7+ {[%emt 0:00:02]} Kg8 {[%emt 0:00:01]} 46. gxh4 {[%emt 0:00:03]} Qd4 {[%emt 0:00:00]} 47. Rfd7 {[%emt 0:00:09]} 0-1